bitfinex/quotes_ETHUSD_20260202
["timestamp","ask_amount","ask_price","bid_price","bid_amount"]
[1769994431863,0.92588479,2303.1,2302.1,1.08592827]
[1769994432062,13.81722696,2303.2,2302.1,1.08592827]
[1769994432266,0.92609047,2303.1,2302.2,1.08591097]
[1769994432462,0.0011,2303.3,2302.2,1.08591097]
[1769994432657,0.92617687,2303.2,2302.2,1.08591097]
[1769994432858,0.92617687,2303.1,2302.2,1.08591097]
[1769994433040,1.08549346,2303.1,2301.8,4.34431456]
[1769994433240,1.08549346,2303.1,2301.9,1.94337583]
[1769994433241,0.54274673,2303.0,2301.9,1.94337583]
[1769994434959,1.08558773,2302.9,2302.0,1.08601216]
[1769994435749,0.54384673,2303.0,2302.0,1.08601216]
[1769994435942,1.0866554,2303.0,2302.0,1.08601216]
[1769994436266,0.0011,2303.0,2301.9,1.08702712]
[1769994436651,0.0011,2303.0,2302.0,12.73248465]
[1769994436857,0.0011,2303.0,2301.9,14.17936431]
[1769994437262,0.0011,2303.0,2301.9,1.08702712]
[1769994437468,0.0011,2303.0,2302.0,0.54313257]
[1769994437642,0.0011,2303.0,2302.0,26.36795441]
[1769994437842,0.0011,2303.0,2302.0,13.63546976]
[1769994439285,0.0011,2303.0,2302.1,1.08596498]
[1769994439570,0.0011,2303.0,2302.0,1.08600825]
[1769994439762,0.01843328,2303.0,2302.0,1.08600825]
[1769994439964,0.92603349,2302.9,2302.0,1.08600227]
[1769994440169,2.40218899,2302.8,2302.0,1.08600227]
[1769994440374,1.47616937,2302.8,2302.0,1.08600227]
[1769994440866,1.47616937,2302.8,2302.0,1.08600268]
[1769994441074,1.47616937,2302.8,2301.9,1.08702878]
[1769994441276,1.08568202,2302.7,2301.9,0.001]
[1769994441446,0.69045795,2302.6,2301.9,0.001]
[1769994441974,2.56183317,2302.8,2301.9,0.001]
[1769994441975,13.83456024,2302.7,2301.9,0.001]
[1769994442178,0.94370589,2302.6,2301.9,0.001]
[1769994442474,0.94371954,2302.5,2301.9,0.001]
[1769994442773,13.81722696,2302.6,2301.9,0.001]
[1769994442984,2.30985193,2302.5,2301.9,0.001]
[1769994443193,1.38345602,2302.5,2301.9,0.001]
[1769994443340,15.8466253,2302.4,2301.7,0.001]
[1769994443545,0.01733328,2302.3,2301.7,0.001]
[1769994443745,2.06818003,2302.3,2301.7,0.001]
[1769994444146,15.90274027,2302.3,2301.7,0.001]
[1769994444345,0.01733328,2302.2,2301.7,0.001]
[1769994444547,15.90274027,2302.3,2301.7,0.001]
[1769994444962,0.92590376,2302.2,2301.7,0.001]
[1769994445155,1.6828644,2302.1,2301.7,0.001]
[1769994445365,2.76886119,2302.1,2301.7,0.001]
[1769994445763,1.6828644,2302.1,2301.7,0.001]
[1769994445961,6.41172523,2302.3,2301.7,0.001]
[1769994445962,1.15772513,2302.8,2301.7,0.001]
[1769994446179,0.92525545,2302.7,2301.7,0.001]
[1769994446344,1.08563851,2302.8,2301.7,0.001]
[1769994446545,0.92539081,2302.7,2301.7,0.001]
[1769994446745,0.63534996,2302.7,2301.7,0.001]
[1769994447075,13.81722696,2302.4,2301.7,0.001]
[1769994447247,0.92533827,2302.3,2301.7,0.001]
[1769994447449,1.08587065,2302.3,2301.7,0.001]
[1769994448250,1.10320393,2302.3,2301.9,0.001]
[1769994448367,2.85381534,2302.2,2301.5,0.001]
[1769994448569,0.92569066,2302.1,2301.5,0.001]
[1769994448883,1.92812468,2302.2,2301.5,0.001]
[1769994449089,0.92578655,2302.1,2301.5,0.001]
[1769994449259,1.21113126,2302.0,2301.2,0.001]
[1769994449459,1.08605934,2301.9,2301.2,0.001]
[1769994449786,0.28539112,2302.0,2301.2,0.001]
[1769994449988,1.08590264,2302.3,2301.2,0.001]
[1769994450166,1.08583253,2302.4,2301.2,0.001]
[1769994450362,0.92579887,2302.3,2301.2,0.001]
[1769994450568,13.83456024,2302.3,2301.2,0.001]
[1769994450769,14.75983352,2302.2,2301.2,0.001]
[1769994450979,1.47771668,2302.1,2301.2,0.001]
[1769994451378,1.08601216,2302.0,2301.2,0.001]
[1769994452404,13.83456024,2301.9,2301.2,0.001]
[1769994452569,13.81722696,2301.9,2301.2,0.001]
[1769994453191,0.92533449,2301.8,2301.2,0.001]
[1769994453496,2.56045354,2301.7,2301.2,0.001]
[1769994453684,2.56045354,2301.7,2300.7,14.501]
[1769994453893,13.81722696,2301.5,2300.7,0.001]
[1769994454190,0.01733328,2301.1,2300.3,0.001]
[1769994454522,0.01733328,2301.1,2299.6,1.99712384]
[1769994454523,13.83456024,2300.8,2299.6,1.99712384]
[1769994454708,13.83456024,2300.2,2298.5,13.09233719]
[1769994455015,13.83456024,2300.2,2298.7,4.35021911]
[1769994455016,13.81722696,2299.9,2298.7,4.35021911]
[1769994455184,1.3919627,2299.8,2299.2,1.08728792]
[1769994455380,1.3919627,2299.8,2298.6,18.85032474]
[1769994455586,2.47901585,2299.8,2298.7,1.08757123]
[1769994455912,16.31357609,2299.8,2298.6,14.5]
[1769994456101,13.83456024,2299.5,2298.3,0.110937]
[1769994456304,13.83456024,2299.2,2298.3,0.110937]
[1769994456520,13.83456024,2299.2,2297.5,13.82500572]
[1769994456521,13.40185219,2298.9,2297.9,1.08792055]
[1769994456683,0.01733328,2298.6,2296.9,14.00333719]
[1769994457018,0.01733328,2298.5,2297.0,4.35335845]
[1769994457186,0.01733328,2298.1,2297.0,15.58835964]
[1769994457388,0.01733328,2298.1,2296.8,0.001]
[1769994457389,0.01733328,2297.5,2296.8,0.001]
[1769994457593,0.01733328,2297.3,2296.5,0.001]
[1769994457798,0.01733328,2297.2,2296.5,0.001]
[1769994458191,0.01733328,2296.9,2295.1,4.5826158]
[1769994458390,0.01733328,2296.6,2295.1,0.2256893]
[1769994458718,0.01733328,2297.1,2296.1,1.08879631]
[1769994458920,0.911,2297.2,2296.2,0.54440073]
[1769994459220,0.911,2297.2,2295.8,4.355211]
[1769994459221,0.01733328,2296.7,2295.2,14.501]
[1769994459519,0.01733328,2295.9,2295.3,1.08918224]
[1769994459683,0.01733328,2295.7,2295.2,0.001]
[1769994459885,0.01733328,2295.7,2295.2,1.08921252]
[1769994459886,0.01733328,2295.5,2295.2,1.08921252]
[1769994460225,0.11973328,2296.5,2295.8,0.001]
[1769994460430,0.92833328,2296.6,2295.8,0.001]
[1769994460431,0.911,2296.6,2295.8,0.001]
[1769994460785,0.01733328,2296.5,2295.8,0.001]
[1769994461026,0.911,2296.6,2295.8,0.001]
[1769994461210,0.01733328,2296.9,2295.8,0.001]
[1769994461409,0.01733328,2296.6,2295.8,0.001]
[1769994461616,0.01733328,2296.5,2295.8,0.001]
[1769994461801,0.01733328,2296.2,2295.5,0.001]
[1769994462126,0.01733328,2295.8,2295.2,1.08922749]
[1769994462287,0.01733328,2295.7,2294.6,4.35901576]
[1769994462489,0.01733328,2296.1,2294.6,4.35901576]
[1769994462490,0.01733328,2296.5,2295.2,1.08922862]
[1769994462692,0.01733328,2296.2,2295.2,1.08922862]
[1769994462909,0.01733328,2296.4,2295.2,1.08922862]
[1769994463191,0.01733328,2296.7,2295.2,15.26850191]
[1769994463412,0.01733328,2296.5,2295.3,14.5]
[1769994463618,0.01733328,2296.7,2295.4,4.06598498]
[1769994464090,0.01733328,2296.6,2295.4,4.06598498]
[1769994464328,0.01733328,2296.4,2295.5,14.5]
[1769994464696,0.01733328,2296.6,2295.5,14.5]
[1769994465321,0.01733328,2296.4,2295.5,14.5]
[1769994465524,0.01733328,2296.4,2295.7,1.08899246]
[1769994465828,0.01733328,2296.3,2295.6,1.08903781]
[1769994466045,0.01733328,2296.3,2295.6,1.08903656]
[1769994466046,0.01733328,2296.1,2295.6,1.08903656]
[1769994466192,0.11973328,2296.6,2295.6,1.08903656]
[1769994466534,0.01733328,2296.2,2295.5,1.08908392]
[1769994466718,0.01733328,2295.9,2295.3,1.08914671]
[1769994466894,0.01733328,2295.8,2295.2,1.089202]
[1769994467090,0.01733328,2295.7,2295.1,1.08924718]
[1769994467533,0.01733328,2295.7,2294.8,1.08941955]
[1769994467688,0.01733328,2295.7,2294.4,5.92414302]
[1769994467689,14.43124912,2295.7,2294.4,5.92414302]
[1769994467901,14.43124912,2295.7,2293.7,0.110937]
[1769994467902,0.01733328,2294.0,2293.7,0.110937]
[1769994468089,0.01733328,2293.9,2292.8,18.12940795]
[1769994468389,0.01733328,2293.9,2291.8,13.76795832]
[1769994468390,4.3611059,2292.9,2291.8,13.76795832]
[1769994468720,0.01733328,2293.8,2293.0,1.09027474]
[1769994468891,0.01733328,2293.1,2292.0,4.36289826]
[1769994469092,0.01733328,2292.4,2291.9,1.09078286]
[1769994469312,0.01733328,2292.0,2291.6,1.09090824]
[1769994469492,1.83807542,2292.9,2291.1,13.76795832]
[1769994469695,1.83807542,2292.9,2291.2,30.08124154]
[1769994469696,0.01733328,2292.3,2291.2,30.08124154]
[1769994469895,0.01733328,2292.0,2291.2,16.31328322]
[1769994470123,0.01733328,2292.2,2291.2,16.31328322]
[1769994470319,0.01733328,2292.2,2290.7,18.133055]
[1769994470320,0.01733328,2291.7,2290.7,13.76795832]
[1769994470510,0.01733328,2291.5,2290.8,1.09129602]
[1769994470696,0.73041691,2291.9,2290.8,1.09131355]
[1769994470897,0.01733328,2292.5,2290.9,15.412]
[1769994471116,0.01733328,2292.3,2290.9,15.412]
[1769994471296,0.01733328,2292.0,2291.0,1.65033136]
[1769994471511,0.01733328,2291.8,2291.1,1.0911789]
[1769994471933,0.01733328,2291.6,2290.6,0.913]
[1769994472097,0.01733328,2291.7,2291.0,1.09119521]
[1769994472291,1.10806859,2292.1,2291.0,1.09119521]
[1769994472292,0.01733328,2292.2,2291.0,1.63682044]
[1769994472526,0.01733328,2291.7,2291.0,0.54561014]
[1769994472745,0.01733328,2291.9,2291.0,1.09121809]
[1769994472897,0.01733328,2291.6,2291.0,1.09121809]
[1769994473100,0.11973328,2292.3,2291.0,1.09121809]
[1769994473317,0.01733328,2292.6,2291.1,0.913]
[1769994473625,0.01733328,2292.7,2291.4,1.09103604]
[1769994473822,0.01733328,2292.9,2291.5,1.92241385]
[1769994474033,0.01733328,2292.6,2291.6,14.5]
[1769994474237,0.01733328,2292.4,2291.5,1.92241385]
[1769994474412,0.01733328,2292.5,2291.5,1.92241385]
[1769994474612,0.01733328,2292.5,2291.3,4.36514419]
[1769994474613,0.01733328,2292.3,2291.3,0.001]
[1769994474853,0.01733328,2292.5,2291.3,1.09205751]
[1769994475146,0.01733328,2292.1,2291.3,1.09205751]
[1769994475322,0.01733328,2292.1,2291.3,1.09207899]
[1769994475648,0.01733328,2292.4,2291.3,0.001]
[1769994475845,0.01733328,2292.2,2291.3,0.001]
[1769994476047,0.01733328,2292.3,2291.3,0.001]
[1769994476252,0.01733328,2291.8,2291.3,0.001]
[1769994476415,0.01733328,2291.4,2290.1,0.09120693]
[1769994476619,0.01733328,2290.9,2290.4,1.09151219]
[1769994476862,0.01733328,2290.8,2290.2,4.36641391]
[1769994477079,0.01733328,2290.8,2290.2,1.0915713]
[1769994477080,0.01733328,2290.7,2290.2,1.0915713]
[1769994477247,0.01733328,2290.9,2290.1,0.09120693]
[1769994477445,0.01733328,2290.8,2290.1,0.09120693]
[1769994477662,0.01733328,2290.5,2290.1,0.09120693]
[1769994477990,0.01733328,2290.4,2289.9,1.0]
[1769994478198,0.01733328,2290.1,2289.2,4.36829715]
[1769994478489,0.01733328,2290.1,2288.9,1.09219295]
[1769994478490,0.01733328,2289.6,2288.9,1.09219295]
[1769994478637,0.01733328,2289.5,2288.1,13.76795832]
[1769994478979,0.01733328,2289.0,2288.5,1.09238436]
[1769994479182,0.01733328,2289.3,2288.6,1.09234053]
[1769994479489,0.914,2289.7,2288.6,1.09234053]
[1769994479787,0.01733328,2289.4,2288.2,4.36948352]
[1769994479985,4.48659239,2290.0,2288.2,4.36948352]
[1769994479986,0.01733328,2289.9,2288.2,18.13744184]
[1769994480138,0.01733328,2289.9,2288.3,1.92300514]
[1769994480139,0.01733328,2289.5,2288.3,1.92300514]
[1769994480339,0.01733328,2289.0,2288.1,2.00660958]
[1769994480574,0.01733328,2289.0,2287.4,12.55261899]
[1769994480575,0.01733328,2288.6,2286.2,13.76795832]
[1769994480872,0.01733328,2288.6,2285.4,0.01733328]
[1769994480873,7.162901,2285.8,2285.4,18.14351292]
[1769994481179,0.2335703,2287.5,2285.5,14.68195832]
[1769994481377,0.914,2288.4,2285.9,26.33791059]
[1769994481578,0.01733328,2288.1,2286.2,13.76795832]
[1769994481777,1.10989511,2288.2,2286.3,14.63195832]
[1769994482068,0.01733328,2287.6,2286.5,13.76795832]
[1769994482236,0.01733328,2287.2,2286.1,1.09356546]
[1769994482437,0.01733328,2287.2,2285.3,0.914]
[1769994482438,0.01733328,2286.7,2285.3,14.68195832]
[1769994482676,0.01733328,2287.1,2286.0,1.09359404]
[1769994482862,0.01733328,2287.6,2286.1,0.54680472]
[1769994483178,0.01733328,2288.0,2286.1,14.31476304]
[1769994483342,0.01733328,2287.5,2286.1,14.31476304]
[1769994483642,0.01733328,2287.8,2286.3,13.76795832]
[1769994483841,0.01733328,2287.6,2286.3,13.76795832]
[1769994484070,0.01733328,2287.1,2286.4,1.48614759]
[1769994484388,0.01733328,2286.8,2286.1,1.64033834]
[1769994484536,0.04516852,2286.4,2286.1,1.64035793]
[1769994484738,4.38815368,2288.1,2286.1,1.64035793]
[1769994484739,0.01733328,2287.9,2286.1,15.40831625]
[1769994484935,1.10963612,2288.8,2286.6,13.7852916]
[1769994485164,0.01733328,2288.6,2286.8,13.76795832]
[1769994485443,4.30810301,2290.1,2288.5,0.01733328]
[1769994485754,0.01733328,2289.9,2288.5,1.09240736]
[1769994485944,0.1024,2289.7,2288.3,1.09250906]
[1769994486143,3.24594,2289.6,2287.8,1.09272018]
[1769994486344,0.2335703,2289.2,2287.4,0.915]
[1769994486546,0.1024,2289.0,2287.8,1.09274382]
[1769994486747,0.1024,2289.0,2287.4,0.915]
[1769994486748,2.968846,2288.9,2287.9,1.09266841]
[1769994486950,0.3071246,2288.8,2288.0,1.09262036]
[1769994487151,0.915,2289.2,2288.0,4.37057453]
[1769994487469,0.915,2289.2,2287.6,4.38857514]
[1769994487658,4.09192027,2289.1,2287.6,1.09284774]
[1769994487863,2.622013,2289.0,2287.6,1.09284774]
[1769994488064,2.521098,2289.0,2287.4,0.93233328]
[1769994488374,0.01733328,2288.8,2287.4,1.09292835]
[1769994488683,0.1024,2288.6,2287.5,1.092888]
[1769994488843,0.1024,2288.8,2287.6,1.09284502]
[1769994489038,0.36132303,2288.9,2287.6,1.09284502]
[1769994489237,5.28352911,2289.2,2287.6,1.09284502]
[1769994489238,2.00709912,2289.2,2287.6,1.09284502]
[1769994489544,1.0922277,2288.9,2286.9,0.01733328]
[1769994489746,1.0922277,2288.9,2287.3,0.01733328]
[1769994489966,0.1024,2288.8,2287.3,0.01733328]
[1769994490168,2.450044,2288.7,2287.1,1.09308731]
[1769994490373,2.450044,2288.7,2287.1,3.16861579]
[1769994490374,0.2552444,2288.6,2287.1,3.16861579]
[1769994490573,0.2552444,2288.6,2287.0,4.37234926]
[1769994490574,0.01733328,2288.4,2287.0,1.09312824]
[1769994490753,0.01733328,2287.7,2287.0,1.09312911]
[1769994491151,0.01733328,2287.5,2286.8,1.09320494]
[1769994491456,0.915,2288.2,2287.0,1.09313277]
[1769994491651,0.915,2288.2,2286.6,4.37254044]
[1769994491652,0.93233328,2288.2,2286.6,4.37254044]
[1769994491850,0.01733328,2288.0,2286.7,0.54659146]
[1769994492040,0.01733328,2287.9,2286.7,0.54659146]
[1769994492244,0.01733328,2287.8,2286.7,0.54659146]
[1769994492465,2.02489639,2288.2,2286.7,0.54659146]
[1769994492466,0.915,2288.2,2286.7,13.73326987]
[1769994492668,0.01733328,2288.7,2286.7,13.73326987]
[1769994492866,0.01733328,2288.4,2286.9,13.18667841]
[1769994493174,0.01733328,2288.3,2286.9,14.10267841]
[1769994493352,1.10964702,2288.8,2286.9,14.10267841]
[1769994493675,0.01733328,2288.6,2287.1,13.18667841]
[1769994493877,0.01733328,2288.3,2287.1,13.18667841]
[1769994494183,0.01733328,2287.9,2287.0,1.09313511]
[1769994494357,0.01733328,2287.8,2287.0,1.09313511]
[1769994494557,0.01733328,2287.5,2286.2,0.916]
[1769994494758,0.01733328,2287.4,2286.3,4.37475324]
[1769994494956,0.01733328,2288.5,2286.9,1.09313749]
[1769994495166,0.01733328,2288.8,2287.0,14.64927174]
[1769994495472,0.01733328,2288.4,2287.0,14.64927174]
[1769994495666,0.01733328,2288.3,2287.1,1.09308731]
[1769994495868,0.01733328,2289.2,2287.1,14.27976572]
[1769994496073,2.32795617,2289.0,2287.1,14.27976572]
[1769994496388,0.01733328,2288.5,2287.3,13.18667841]
[1769994496584,0.6887188,2288.9,2287.3,13.18667841]
[1769994496585,0.67138552,2288.9,2287.3,13.18667841]
[1769994496782,0.30242803,2289.0,2287.3,13.18667841]
[1769994497081,1.39461132,2289.0,2287.3,13.18667841]
[1769994497280,0.01733328,2288.8,2287.3,13.18667841]
[1769994497449,0.01733328,2288.6,2287.3,14.10267841]
[1769994497644,1.09251409,2288.3,2287.4,1.09294395]
[1769994497866,0.54970625,2288.3,2287.4,1.09294395]
[1769994498046,0.54970625,2288.3,2287.2,2.01320416]
[1769994498047,0.01733328,2288.2,2287.2,3.10621973]
[1769994498247,1.1098124,2288.4,2287.3,1.09296022]
[1769994498248,1.09247912,2288.4,2287.3,1.09296022]
[1769994498448,2.00825456,2288.9,2287.3,14.27963863]
[1769994498649,1.41196059,2289.0,2287.4,14.10267841]
[1769994498974,1.41196059,2289.0,2287.4,13.18667841]
[1769994498975,0.0011,2288.5,2287.4,13.18667841]
[1769994499344,0.0011,2288.7,2287.4,13.18667841]
[1769994499659,1.39462327,2289.0,2287.8,13.18667841]
[1769994499855,0.30242803,2289.0,2287.8,13.18667841]
[1769994501189,0.0011,2289.7,2287.9,13.20401169]
[1769994501482,0.0011,2289.7,2288.3,13.20401169]
[1769994501648,0.0011,2289.7,2288.6,14.27904929]
[1769994501855,0.0011,2289.7,2288.7,0.916]
[1769994502260,0.0011,2289.7,2288.6,14.27904929]
[1769994502555,0.0011,2289.7,2288.7,0.916]
[1769994502754,0.0011,2289.7,2288.6,14.27904929]
[1769994502951,0.0011,2289.7,2288.7,1.530304]
[1769994503152,0.0011,2289.7,2288.7,14.71698241]
[1769994503461,1.09151251,2290.4,2288.7,14.71698241]
[1769994503783,1.09151251,2290.4,2288.8,14.27895383]
[1769994503952,0.01733328,2290.1,2288.9,0.54659333]
[1769994504149,0.01733328,2289.8,2288.7,1.70661302]
[1769994504382,0.01733328,2290.1,2288.7,1.09230902]
[1769994504568,0.01733328,2290.1,2288.6,5.28529261]
[1769994504569,0.01733328,2289.6,2288.6,1.0923345]
[1769994504767,0.01733328,2289.9,2288.7,1.09232131]
[1769994504980,0.01733328,2289.5,2288.4,5.69185759]
[1769994505282,0.01733328,2289.9,2288.7,1.09231231]
[1769994505486,0.01733328,2289.8,2288.8,0.54616049]
[1769994505687,0.01733328,2289.8,2288.5,4.36960268]
[1769994505688,1.09198916,2289.4,2288.5,4.36960268]
[1769994506061,4.38466566,2289.8,2288.5,4.36960268]
[1769994506062,1.09160771,2290.2,2288.6,13.18667841]
[1769994506261,0.01733328,2290.0,2288.6,13.18667841]
[1769994506468,0.01733328,2289.8,2288.5,1.09241861]
[1769994506655,0.01733328,2289.5,2288.5,1.09241861]
[1769994506850,0.01733328,2289.5,2288.5,1.63864298]
[1769994507056,0.01733328,2289.3,2287.6,13.18667841]
[1769994507273,0.01733328,2289.3,2288.4,1.09245521]
[1769994507496,0.01733328,2289.5,2288.4,1.09245521]
[1769994507654,0.01733328,2289.3,2288.3,1.09251234]
[1769994507856,1.09208457,2289.2,2287.9,4.37079031]
[1769994508058,1.63982952,2289.2,2288.0,1.86501738]
[1769994508287,0.01733328,2289.0,2287.9,4.37079031]
[1769994508480,0.56507823,2289.2,2287.9,4.37079031]
[1769994508788,0.01733328,2289.6,2287.9,4.37079031]
[1769994508789,1.09187588,2289.7,2288.0,13.18667841]
[1769994508979,0.01733328,2289.5,2288.0,13.18667841]
[1769994509157,0.01733328,2289.4,2288.0,13.18667841]
[1769994509359,0.01733328,2289.3,2288.0,14.10267841]
[1769994509554,0.01733328,2289.4,2288.0,14.10267841]
[1769994509759,0.01733328,2289.5,2288.2,1.09256183]
[1769994509760,1.09195276,2289.5,2288.2,1.09256183]
[1769994509979,1.09192196,2289.6,2288.2,1.09256183]
[1769994510369,1.09192196,2289.6,2288.2,14.27924024]
[1769994510968,1.1253755,2290.2,2288.2,14.27924024]
[1769994511190,2.34759508,2290.1,2288.4,13.18667841]
[1769994511366,1.43286499,2290.1,2288.4,13.18667841]
[1769994511568,0.01733328,2289.7,2288.3,15.23636186]
[1769994511766,1.41553171,2290.1,2288.5,13.18667841]
[1769994512076,0.01733328,2289.9,2288.6,14.61459289]
[1769994512275,0.01733328,2289.7,2288.6,15.53059289]
[1769994512488,0.01733328,2290.0,2288.6,14.61459289]
[1769994512686,1.41553171,2290.1,2288.6,14.61459289]
[1769994512863,0.57994865,2290.0,2288.7,0.52499776]
[1769994513461,0.01733328,2289.6,2288.4,1.09246635]
[1769994513691,0.01733328,2289.3,2288.3,1.09247849]
[1769994513995,1.10941785,2289.2,2288.2,4.37021908]
[1769994514166,0.01733328,2289.0,2288.1,1.09257436]
[1769994514684,0.01733328,2289.1,2288.1,1.09260824]
[1769994514865,0.01733328,2289.0,2288.0,1.09262705]
[1769994515062,0.01733328,2289.0,2287.8,4.37195136]
[1769994515262,0.01733328,2288.9,2288.1,1.09257078]
[1769994515463,0.01733328,2288.8,2287.9,1.09267917]
[1769994515790,1.09217999,2289.0,2287.8,4.37197198]
[1769994515978,1.09217999,2289.0,2287.9,0.54647726]
[1769994516182,1.75592262,2289.1,2287.9,13.73315567]
[1769994516394,1.0921428,2289.1,2287.9,0.54647726]
[1769994516678,0.01733328,2288.4,2287.8,0.001]
[1769994516874,0.01733328,2288.2,2287.5,0.001]
[1769994517064,0.01733328,2288.0,2286.6,0.001]
[1769994517263,0.01733328,2287.7,2286.6,0.001]
[1769994517473,0.01733328,2287.5,2286.7,4.37294506]
[1769994517677,0.01733328,2287.5,2286.8,1.09322789]
[1769994517864,2.21800959,2288.1,2286.6,0.001]
[1769994518065,1.29052182,2288.0,2286.6,14.83963914]
[1769994518322,0.01733328,2287.7,2286.6,1.86645492]
[1769994518593,0.01733328,2287.7,2286.6,0.001]
[1769994519091,0.37661038,2288.0,2286.6,0.001]
[1769994519289,0.39394366,2288.0,2286.6,0.001]
[1769994519485,0.01733328,2287.8,2286.6,0.001]
[1769994519678,0.01733328,2287.7,2286.6,1.8451055]
[1769994519892,1.09289617,2287.5,2286.7,1.09327852]
[1769994520200,4.37104475,2287.8,2286.7,1.09327852]
[1769994520410,0.01733328,2287.6,2286.7,1.09327852]
[1769994520587,0.01733328,2287.3,2286.6,1.09432408]
[1769994520765,0.01733328,2287.4,2286.6,0.001]
[1769994520965,0.01733328,2287.1,2286.4,4.37355177]
[1769994521192,0.01733328,2287.1,2286.3,1.09444032]
[1769994521498,0.01733328,2287.1,2286.3,0.001]
[1769994521707,0.01733328,2287.0,2286.3,0.001]
[1769994521993,0.01733328,2287.0,2286.0,0.001]
[1769994521994,0.01733328,2286.5,2286.0,0.001]
[1769994522184,0.01733328,2286.4,2285.0,12.97318422]
[1769994522382,4.39026906,2286.8,2285.6,1.09377884]
[1769994522383,1.11059201,2286.8,2285.6,1.09377884]
[1769994522694,5.30615554,2286.9,2285.6,1.09377884]
[1769994522695,4.37164251,2287.5,2285.6,14.98296306]
[1769994522897,1.0928484,2287.6,2285.7,0.01733328]
[1769994523064,0.01733328,2287.5,2285.8,12.9905175]
[1769994523264,0.01733328,2287.4,2285.9,1.30078508]
[1769994523490,0.01733328,2287.3,2285.9,12.97318422]
[1769994523671,0.01733328,2287.2,2285.9,12.97318422]
[1769994524091,0.55162418,2287.5,2286.0,14.06679751]
[1769994524263,1.09280062,2287.7,2286.0,14.06679751]
[1769994524465,0.01733328,2287.6,2286.0,14.06679751]
[1769994524676,0.01733328,2287.3,2286.1,1.84412507]
[1769994524881,0.01733328,2287.1,2286.1,1.84412507]
[1769994525203,0.01733328,2286.7,2285.9,1.0936338]
[1769994525390,0.01733328,2287.1,2285.9,1.0936338]
[1769994525883,0.01733328,2287.1,2286.2,0.001]
[1769994525884,0.01733328,2286.8,2286.2,0.001]
[1769994526195,0.01733328,2286.7,2286.2,0.001]
[1769994526399,0.01733328,2286.7,2285.5,17.34840298]
[1769994526400,0.01733328,2286.3,2285.5,1.09381805]
[1769994526599,0.01733328,2286.6,2285.5,1.09381805]
[1769994526807,0.01733328,2286.5,2285.5,1.09381805]
[1769994526963,0.01733328,2286.6,2285.5,1.09381805]
[1769994527170,2.00918657,2286.9,2285.5,14.82279041]
[1769994527365,0.01733328,2286.8,2285.6,1.91983244]
[1769994527673,0.01733328,2286.3,2285.5,1.09381805]
[1769994527889,0.01733328,2286.0,2285.5,1.09384848]
[1769994528070,0.01733328,2286.0,2285.2,1.1841888]
[1769994528071,0.01733328,2285.9,2285.2,1.1841888]
[1769994528271,0.01733328,2285.7,2285.2,0.09020693]
[1769994528519,0.01733328,2285.6,2285.0,1.09506818]
[1769994528669,0.01733328,2285.9,2285.2,1.09399225]
[1769994528997,0.01733328,2286.2,2285.2,1.64108993]
[1769994529198,0.01733328,2286.7,2285.2,15.37006229]
[1769994529366,0.01733328,2287.0,2285.2,15.37006229]
[1769994529568,0.01733328,2286.8,2285.2,15.37006229]
[1769994529772,0.01733328,2287.0,2285.2,15.37006229]
[1769994529984,0.01733328,2286.9,2285.4,13.72897236]
[1769994530168,1.11056399,2286.8,2285.5,14.8228249]
[1769994530379,0.01733328,2286.7,2285.5,14.8228249]
[1769994530600,0.01733328,2286.4,2285.5,1.09385254]
[1769994530813,0.01733328,2286.4,2285.4,1.0938967]
[1769994530814,0.01733328,2286.1,2285.4,1.0938967]
[1769994531000,0.01733328,2285.8,2285.4,1.09389635]
[1769994531182,4.49265614,2287.0,2285.4,1.09389635]
[1769994531507,0.01733328,2286.2,2285.4,1.09389635]
[1769994531675,0.01733328,2287.1,2285.4,16.28581851]
[1769994532003,0.01733328,2286.6,2285.4,15.36981851]
[1769994532305,1.64446296,2287.6,2285.4,15.36981851]
[1769994532601,0.01733328,2287.3,2285.4,15.36981851]
[1769994532807,0.916,2287.9,2285.8,13.72897236]
[1769994533013,1.11073631,2288.8,2286.8,13.72897236]
[1769994533193,0.0011,2288.8,2287.0,13.72897236]
[1769994533503,0.01733328,2288.6,2287.0,13.72897236]
[1769994533883,0.01733328,2288.7,2287.0,13.72897236]
[1769994534193,1.10980934,2288.4,2287.1,1.09308731]
[1769994534398,0.01733328,2288.1,2287.1,1.09308731]
[1769994534584,0.01733328,2288.2,2287.1,1.91835886]
[1769994534917,0.01733328,2288.4,2287.1,1.91835886]
[1769994535088,0.01733328,2288.0,2287.1,1.09308731]
[1769994535287,0.01733328,2287.9,2287.1,1.09308731]
[1769994535482,0.01733328,2287.9,2286.8,4.3727791]
[1769994535483,0.01733328,2287.8,2286.8,4.3727791]
[1769994535678,0.01733328,2287.7,2287.0,1.09312358]
[1769994535872,0.01733328,2287.8,2287.0,1.09312358]
[1769994536105,0.01733328,2287.7,2286.9,1.09315128]
[1769994536283,0.01733328,2288.1,2286.9,0.54660602]
[1769994536488,0.01733328,2287.9,2286.6,1.09332633]
[1769994536690,0.01733328,2287.8,2286.6,1.09332633]
[1769994536898,0.01733328,2288.0,2286.6,1.09332633]
[1769994537207,1.10975189,2288.5,2286.6,1.09332633]
[1769994537521,1.10975189,2288.5,2286.6,14.82229869]
[1769994537678,0.01733328,2288.2,2286.7,2.01289373]
[1769994538524,0.01733328,2288.0,2286.8,1.09323071]
[1769994538688,0.01733328,2288.1,2286.8,1.09323071]
[1769994538893,0.01733328,2288.0,2286.8,1.09323071]
[1769994539100,0.0011,2287.9,2286.8,1.09323071]
[1769994539299,0.0011,2287.9,2286.9,0.74790473]
[1769994540182,0.01733328,2287.7,2286.8,1.09323071]
[1769994540388,0.0011,2287.9,2286.8,1.09323071]
[1769994540594,0.01733328,2288.5,2286.8,1.09323071]
[1769994540905,0.01733328,2288.5,2286.4,4.37292286]
[1769994540906,0.01733328,2286.3,2285.4,0.001]
[1769994541102,0.01733328,2286.3,2284.6,4.37694311]
[1769994541304,0.916,2286.6,2284.7,13.72897236]
[1769994541503,0.01733328,2286.9,2284.9,13.72897236]
[1769994541704,0.01733328,2286.7,2284.9,13.72897236]
[1769994541912,0.01733328,2286.3,2284.9,13.72897236]
[1769994542083,0.01733328,2287.4,2284.9,13.72897236]
[1769994542287,0.01733328,2287.4,2284.9,13.74630564]
[1769994542539,1.11041156,2287.2,2285.3,13.72897236]
[1769994542687,0.01733328,2286.9,2285.4,0.916]
[1769994542883,0.01733328,2287.1,2285.4,0.916]
[1769994543258,0.01733328,2287.0,2285.4,0.916]
[1769994543391,0.01733328,2286.5,2285.2,1.09399614]
[1769994543743,0.01733328,2285.7,2284.5,0.110937]
[1769994544033,0.01733328,2285.4,2284.8,1.09416047]